[Event "Arona Festival 2024"]
[Site "Arona Tenerife"]
[Date "2024.06.27"]
[Round "7.1"]
[White "David, Alberto"]
[Black "Gorshtein, Ido"]
[Result "1/2-1/2"]
[ECO "B12"]
[WhiteElo "2502"]
[BlackElo "2563"]
[Annotator "TA"]
[PlyCount "152"]
[EventDate "2024.06.20"]
[EventType "swiss"]
[EventCountry "ESP"]
[SourceTitle "playchess.com"]
[Source "ChessBase"]
[SourceQuality "1"]
[TimeControl "5400+30"]

{[%evp 9,152,2,11,12,18,5,6,0,5,0,16,0,21,-56,-43,-46,0,0,0,0,0,0,0,0,32,-44,-45,-42,-45,-40,-55,-55,-44,-53,-43,-64,-60,-55,-28,-30,-28,-30,-34,-26,-18,-26,-21,-28,-22,-25,-21,-32,-39,-38,-43,-57,-57,-54,-51,-57,-47,-91,-91,-82,-86,-90,-88,-81,0,0,0,-23,-13,-52,-54,-70,-32,-32,-33,-166,-160,-1233,-32,-32,-32,-32,-32,-33,-57,-32,-32,-33,-33,-33,-34,-33,-33,-40,-40,-40,-40,-40,-22,-24,0,-53,-39,-62,0,-66,0,0,-4,-19,-25,-27,-34,-39,-50,-72,0,-50,0,-50,0,0,0,-85,0,0,0,0,0,0,0,0,0,0,0,0,0,0,0,0,0]} 1. e4 {[%emt 0:00:05]} c6 {[%emt 0:05:37]} 2. d4 {[%emt 0:00:24]} d5 {[%emt 0:00:04]} 3. f3 {[%emt 0:00:37]} e6 {[%emt 0:01:40]} 4. Nc3 {[%emt 0:00:19]} Bb4 {[%emt 0:00:08]} 5. Bd2 {[%emt 0:00:36]} dxe4 {[%emt 0:03:57]} 6. Nxe4 {[%emt 0:16:28]} Be7 {[%emt 0:00:15][%cal Of7f5]} 7. Qe2 {[%emt 0:01:37]} Nd7 {[%emt 0:05:20]} 8. O-O-O {[%emt 0:01:44]} Ngf6 {[%emt 0:00:11]} 9. Qe1 {[%emt 0:08:40]} O-O {[%emt 0:07:23]} 10. Bd3 {[%emt 0:03:37]} e5 {[%emt 0:16:38]} 11. Ng3 {[%emt 0:18:32]} (11. Ba5 $11 Qe8 12. Bc3) 11... exd4 $15 {[%emt 0:07:45]} 12. Nf5 {[%emt 0:00:05][%csl LRd4,LRe7]} Re8 {[%emt 0:02:11]} (12... Bc5 $15 13. Qg3 Nh5) 13. Qg3 $1 $14 {[%emt 0:00:19][%csl Gf5][%cal Rg3g7]} Nh5 {[%emt 0:06:18]} 14. Qg4 {[%emt 0:16:16]} Ndf6 {[%emt 0:00:35]} 15. Nxe7+ {[%emt 0:02:34]} Rxe7 {[%emt 0:00:19]} 16. Qh4 {[%emt 0:00:05] Strongly threatening g4.} Qd5 {[%emt 0:11:05]} 17. b3 {[%emt 0:05:53]} (17. Kb1 $14) 17... Qd6 $36 {[%emt 0:05:31][%mdl 2048] White is under pressure.} 18. Ne2 {[%emt 0:00:46][%cal Oh1e1] [#]} Bf5 $1 {[%emt 0:02:07] Hoping for ...Bxd3.} 19. Qxd4 {[%emt 0:18:40]} Qxd4 {[%emt 0:02:31]} 20. Nxd4 {[%emt 0:00:02]} Bxd3 {[%emt 0:00:09]} 21. cxd3 {[%emt 0:00:02] And now g4 would win.} Nd5 {[%emt 0:02:10]} 22. g3 {[%emt 0:02:33] Repels Nhf4} g6 {[%emt 0:00:26]} 23. Rhe1 {[%emt 0:00:31]} Rae8 {[%emt 0:00:08]} 24. Rxe7 {[%emt 0:00:10]} Rxe7 {[%emt 0:00:03]} 25. Re1 {[%emt 0:00:30]} Rxe1+ {[%emt 0:00:55]} 26. Bxe1 $11 {[%emt 0:00:02][%mdl 4096] Endgame. KBN-KNN} Ng7 {[%emt 0:01:02]} 27. Kd2 {[%emt 0:01:51]} Kf8 {[%emt 0:00:50]} 28. Ke2 {[%emt 0:00:56]} Ke7 {[%emt 0:00:11]} 29. Bd2 {[%emt 0:00:10]} Ne8 {[%emt 0:00:36]} 30. g4 {[%emt 0:00:30]} Nec7 {[%emt 0:01:57]} 31. Kf2 {[%emt 0:00:44]} Kd6 {[%emt 0:01:09]} 32. h4 {[%emt 0:00:37]} Ke5 {[%emt 0:05:48]} 33. Ne2 {[%emt 0:00:23]} Ne6 {[%emt 0:00:24]} 34. Be3 {[%emt 0:00:37]} c5 {[%emt 0:03:43]} 35. Bxc5 {[%emt 0:00:12]} Nxc5 {[%emt 0:00:03]} 36. d4+ {[%emt 0:00:03]} Kd6 {[%emt 0:00:08]} 37. dxc5+ {[%emt 0:00:03]} Kxc5 $17 {[%emt 0:00:06] aiming for ...Kb4. KN-KN} 38. a3 {[%emt 0:00:03]} Nc7 {[%emt 0:05:00]} (38... a5 $17 39. Ke1 Kd6) 39. Ke3 $11 {[%emt 0:00:08]} Nb5 {[%emt 0:00:07]} 40. a4 {[%emt 0:00:27]} Nc7 {[%emt 0:00:10]} 41. Kd3 {[%emt 0:01:10]} Kb4 {[%emt 0:00:40]} 42. Nd4 {[%emt 0:01:39]} Ne6 {[%emt 0:03:38]} 43. Nxe6 {[%emt 0:00:06]} fxe6 $15 {[%emt 0:00:03] KP-KP} 44. Kd4 {[%emt 0:00:06]} (44. f4 $15) 44... Kxb3 $19 {[%emt 0:00:23]} 45. a5 {[%emt 0:00:41]} (45. f4 $17) 45... Kb4 $2 {[%emt 0:00:51]} (45... Kc2 $1 $19 46. Ke5 Kd3) 46. Ke5 $15 {[%emt 0:00:16]} Kxa5 {[%emt 0:00:05] ...b5 is the strong threat.} 47. Kxe6 {[%emt 0:00:04]} b5 {[%emt 0:00:07]} 48. f4 {[%emt 0:00:03]} b4 {[%emt 0:00:05]} 49. f5 {[%emt 0:00:02]} gxf5 {[%emt 0:02:27]} 50. gxf5 {[%emt 0:00:05] K3P-KPP} b3 {[%emt 0:00:06]} 51. f6 {[%emt 0:00:02]} b2 {[%emt 0:00:04]} 52. f7 {[%emt 0:00:03]} b1=Q {[%emt 0:00:06] ( -> ...Qb4)} (52... b1=B 53. f8=Q (53. f8=R Bg6 $16) (53. Ke7 Bg6 $18) 53... Ba2+ 54. Ke5 (54. Ke7 h5 $18) 54... Kb5 55. Qb8+ Kc6 56. Qd6+ (56. Qxa7 Bb3 57. Qa3 Bg8 58. Qa8+ Kc5 59. Qxg8 Kc6 60. Qa8+ Kc5 61. Qd5+ Kb4) 56... Kb5 57. Kd4) 53. f8=Q {[%emt 0:00:04] KQ-KQ} Qe4+ {[%emt 0:00:18]} 54. Kd7 {[%emt 0:00:33]} Qb7+ {[%emt 0:00:58]} 55. Ke6 {[%emt 0:00:04]} Qb6+ {[%emt 0:01:23]} 56. Kd7 {[%emt 0:00:42]} Qb7+ {[%emt 0:00:41]} 57. Ke6 {[%emt 0:00:11]} Qc6+ {[%emt 0:00:02]} 58. Ke5 {[%emt 0:00:10]} h5 {[%emt 0:00:38]} (58... Kb5 $15 59. Qd8 a5) 59. Qd8+ {[%emt 0:02:15]} (59. Kd4 $11) 59... Ka6 {[%emt 0:00:18]} (59... Kb5 $1 $15) 60. Kf5 $11 {[%emt 0:00:22]} Qc5+ {[%emt 0:00:53]} 61. Kf4 {[%emt 0:00:47]} Kb5 {[%emt 0:00:24]} 62. Qe8+ {[%emt 0:00:33]} Kb4 {[%emt 0:00:44]} 63. Qe1+ {[%emt 0:00:17]} Ka4 {[%emt 0:00:43] ...Qb4+ would now be deadly.} 64. Qd1+ {[%emt 0:01:36] [#]} Ka5 {[%emt 0:00:30]} ({Black should try} 64... Kb5 $1 $17) 65. Qd8+ {[%emt 0:00:45]} (65. Kf3 $11) 65... Kb5 {[%emt 0:00:11]} 66. Qe8+ {[%emt 0:00:40]} Kb6 {[%emt 0:01:07]} (66... Kc4 $1 $15) 67. Qb8+ $1 {[%emt 0:01:03]} Ka6 {[%emt 0:00:07]} 68. Qe8 {[%emt 0:00:06] [#]} (68. Qd8 $11 {keeps the balance.}) 68... Qb4+ {[%emt 0:01:01]} ({Better is} 68... Kb7 $1 $17) 69. Kf3 $1 {[%emt 0:00:59] The position is equal.} Qb3+ {[%emt 0:00:30]} 70. Kf2 {[%emt 0:01:07]} Qb2+ {[%emt 0:00:07]} 71. Kf3 {[%emt 0:00:34]} Qd4 {[%emt 0:00:21]} 72. Qe6+ {[%emt 0:00:23]} Qb6 {[%emt 0:00:10]} 73. Qa2+ {[%emt 0:00:11]} Qa5 {[%emt 0:00:08]} 74. Qe6+ {[%emt 0:00:09]} Kb7 {[%emt 0:00:07]} 75. Qf7+ {[%emt 0:01:07]} Ka6 {[%emt 0:00:38]} 76. Qg6+ {[%emt 0:00:16]} Kb7 {[%emt 0:00:08] Weighted Error Value: White=0.31/Black=0.27 (precise) .  Loses game:     	White=1     	---        Missed win:     	---       	Black=1      Mistake:       	White=6     	Black=7      Inaccurate:     	White=1     	Black=3      OK:         	White=26    	Black=25     Best:        	White=12    	Black=4      Strong:       	White=3     	---        Brilliant:      	---       	Black=1} 1/2-1/2

[Event "Arona Festival 2024"]
[Site "Arona Tenerife"]
[Date "2024.06.27"]
[Round "7.2"]
[White "Xue, Haowen"]
[Black "Sankalp Gupta"]
[Result "1-0"]
[ECO "A29"]
[WhiteElo "2452"]
[BlackElo "2552"]
[Annotator "TA"]
[PlyCount "113"]
[EventDate "2024.06.20"]
[EventType "swiss"]
[EventCountry "ESP"]
[SourceTitle "playchess.com"]
[Source "ChessBase"]
[SourceQuality "1"]
[TimeControl "5400+30"]

{[%evp 54,113,184,172,173,174,186,185,187,193,175,187,166,96,172,127,139,130,155,86,156,148,270,154,179,188,172,156,168,168,195,187,192,192,1100,142,283,278,375,329,325,298,514,485,527,444,583,583,569,569,562,562,562,560,539,516,1000,964,1070,1003,888,821]} 1. c4 {[%emt 0:00:02]} e5 {[%emt 0:02:41]} 2. Nc3 {[%emt 0:00:04]} Nf6 {[%emt 0:00:28]} 3. Nf3 {[%emt 0:00:10]} Nc6 {[%emt 0:00:03]} 4. g3 {[%emt 0:00:13]} d5 {[%emt 0:05:17]} 5. cxd5 {[%emt 0:00:06]} Nxd5 {[%emt 0:00:06]} 6. Bg2 {[%emt 0:00:07]} Bc5 {[%emt 0:02:06]} 7. O-O {[%emt 0:01:52]} O-O {[%emt 0:01:09]} 8. d3 {[%emt 0:01:13]} h6 {[%emt 0:01:46]} 9. Nxd5 {[%emt 0:01:10]} Qxd5 {[%emt 0:00:03]} 10. Bd2 {[%emt 0:02:16]} Qd6 {[%emt 0:08:42]} 11. Bc3 {[%emt 0:05:55]} Bb6 {[%emt 0:01:28]} 12. Nd2 {[%emt 0:02:48]} Be6 {[%emt 0:03:02]} 13. Nc4 {[%emt 0:04:27]} Bxc4 {[%emt 0:01:24]} 14. dxc4 {[%emt 0:02:47]} Bd4 {[%emt 0:00:00]} 15. Qa4 {[%emt 0:10:00]} Bxc3 {[%emt 0:09:18]} 16. bxc3 {[%emt 0:00:02]} Qd2 {[%emt 0:00:15]} 17. Rab1 {[%emt 0:08:17]} Nd8 {[%emt 0:11:43]} 18. Bf3 {[%emt 0:19:34]} Qxc3 {[%emt 0:06:54]} 19. Rfc1 {[%emt 0:08:12]} Qd4 {[%emt 0:03:17]} 20. Rd1 {[%emt 0:00:26]} Qc5 {[%emt 0:00:02]} 21. Rb5 {[%emt 0:01:06]} Qe7 {[%emt 0:00:09]} 22. Bxb7 {[%emt 0:00:15]} Nxb7 {[%emt 0:05:47]} 23. Rxb7 {[%emt 0:00:03]} Rfd8 {[%emt 0:00:09]} 24. Rd5 {[%emt 0:01:54]} e4 {[%emt 0:15:21]} 25. Rxa7 {[%emt 0:02:27]} Rab8 {[%emt 0:07:16]} 26. Qc6 {[%emt 0:03:27]} Rf8 {[%emt 0:06:45]} 27. Qc5 {[%emt 0:08:56]} Qe6 {[%emt 0:02:02] [#]} 28. Kg2 $1 {[%emt 0:00:45]} (28. Qxc7 e3 29. Qf4 exf2+ 30. Kxf2 Rfe8 $17) 28... Qg4 {[%emt 0:03:45]} 29. Qe3 {[%emt 0:03:02]} (29. Qxc7 Qxe2 30. Qc5 Qf3+ (30... Rb1 $2 31. Qxf8+ Kh7 32. Kh3 $18) 31. Kh3 Rbc8 $11) 29... Rb2 {[%emt 0:00:01]} 30. Rd2 {[%emt 0:00:37]} (30. Rxc7 $6 Rxe2 31. h3 Rxe3 $14) 30... Rxd2 {[%emt 0:00:20]} 31. Qxd2 {[%emt 0:00:01]} e3 {[%emt 0:00:01]} 32. Qxe3 {[%emt 0:00:20]} Qxc4 {[%emt 0:00:02]} 33. a3 {[%emt 0:03:41]} (33. a4 $18) 33... Rb8 {[%emt 0:00:54]} (33... Rc8 $16) 34. Ra5 {[%emt 0:01:01]} Qc6+ {[%emt 0:01:20]} 35. Qf3 {[%emt 0:00:43]} Qd6 {[%emt 0:00:36]} 36. Qd5 {[%emt 0:01:08]} (36. Ra8 $142 c5 37. a4) 36... Qe7 {[%emt 0:01:41]} (36... Qxd5+ $142 37. Rxd5 Ra8) 37. e3 {[%emt 0:00:46]} Qf6 {[%emt 0:01:36]} (37... Qe8 $16 {keeps fighting.} 38. Qc4 Rb6) 38. Rc5 {[%emt 0:02:27]} ({White should play} 38. Ra8 $18 Rxa8 39. Qxa8+ Kh7 40. Qd5) 38... Rb2 {[%emt 0:00:18]} 39. Qa8+ {[%emt 0:00:57]} (39. Rxc7 $2 Qxf2+ (39... Rxf2+ 40. Kg1 $11) 40. Kh3 Qf1+ (40... Qxh2+ $2 41. Kg4 $19) 41. Kg4 Rf2 $19 (41... Rxh2 42. Rc8+ Kh7 43. Qf5+ Qxf5+ 44. Kxf5 $17) (41... Rxh2 42. Rc8+ Kh7 43. Qf5+ Qxf5+ 44. Kxf5 $17)) 39... Kh7 {[%emt 0:00:02]} 40. Qe4+ {[%emt 0:00:06]} (40. Rxc7 Qxf2+ 41. Kh3 Qf5+ (41... Qxh2+ $2 42. Kg4 $19) 42. g4 Qf1+ 43. Kh4 Rxh2+ 44. Kg3 Rh3#) 40... Kg8 {[%emt 0:01:46] [#]} 41. Rf5 $1 {[%emt 0:00:27]} (41. Rxc7 Qxf2+ (41... Rxf2+ 42. Kg1 $11) 42. Kh3 Qf1+ (42... Qxh2+ $2 43. Kg4 $19) 43. Kg4 h5+ (43... Rxh2 44. Rc8#) (43... Qd1+ 44. Qf3 f5+ 45. Kf4 g5+ 46. Ke5 Rb5+ 47. Ke6 Qxf3 48. Rc8+ Kg7 49. Rc7+ Kg6 50. Ke7 Qe4+ 51. Kd7 Qd5+ 52. Ke7 Rb6 53. Rc6+ Rxc6 54. h3 Qe6+ 55. Kf8 Qf7#) 44. Kxh5 Qh3+ (44... Rxh2+ 45. Kg4 f5+ 46. Qxf5 Qh3+ 47. Kf4 Rf2+ 48. Ke5 Qxf5+ 49. Kd4 Rd2+ 50. Kc4 Qd3+ 51. Kc5 Qc3+ 52. Kb5 Rb2+ 53. Ka4 Qb3+ 54. Ka5 Qxa3#) 45. Kg5 f6+ (45... Qxh2 46. Rc8#) 46. Kf4 g5+ (46... Rxh2 47. Rxg7+ Kh8 48. Rg8+ Kxg8 49. Qe8+ Kg7 50. Qe7+ Kg8 51. Qe8+ Kg7 52. Qe7+ Kg8 53. Qe8+ $11) 47. Kf3 Qg2+ (47... Qxh2 48. Qe8#) 48. Kg4 Qxe4+ 49. Kh3 g4+ 50. Kh4 Rxh2#) 41... Qd6 {[%emt 0:00:17]} 42. a4 {[%emt 0:03:29]} g6 {[%emt 0:00:21]} 43. Rf4 {[%emt 0:02:36]} Kg7 $2 {[%emt 0:01:11]} (43... Qd7 44. h4 Rd2) 44. a5 $2 {[%emt 0:00:28]} (44. Qc4 $18 {and the rest is easy.} f5 45. Qc3+ Kg8 46. Qxb2 Qc6+ 47. Kg1) 44... Rb8 {[%emt 0:00:32]} (44... c5 $16 45. h4 Qc7) 45. Qc4 {[%emt 0:00:29]} Qe7 {[%emt 0:00:29]} 46. Qd4+ {[%emt 0:01:11]} Kg8 {[%emt 0:00:05]} 47. Re4 {[%emt 0:00:21]} Qd6 $2 {[%emt 0:00:58]} (47... Qd8 48. Qc4 Ra8) 48. Qxd6 $18 {[%emt 0:00:12]} cxd6 {[%emt 0:00:00]} 49. Ra4 {[%emt 0:00:09]} Kf8 {[%emt 0:00:24]} 50. a6 {[%emt 0:00:09]} Ke7 {[%emt 0:00:01]} 51. Kf3 {[%emt 0:00:32]} Kd7 {[%emt 0:00:01]} 52. a7 {[%emt 0:00:13]} Ra8 {[%emt 0:00:01]} 53. Ke4 {[%emt 0:00:22]} Kc6 {[%emt 0:00:01]} 54. Kd4 {[%emt 0:00:30]} h5 {[%emt 0:00:01]} (54... Kb5 $142 55. Ra3 Kc6) 55. h4 $18 {[%emt 0:00:17]} Kb5 {[%emt 0:00:04]} 56. Ra2 {[%emt 0:00:10]} Kc6 {[%emt 0:00:01]} 57. e4 {[%emt 0:04:02]} 1-0

[Event "Arona Festival 2024"]
[Site "Arona Tenerife"]
[Date "2024.06.27"]
[Round "7.3"]
[White "Paichadze, Luka"]
[Black "Pichot, Alan"]
[Result "1/2-1/2"]
[ECO "B53"]
[WhiteElo "2504"]
[BlackElo "2640"]
[Annotator "TA"]
[PlyCount "83"]
[EventDate "2024.06.20"]
[EventType "swiss"]
[EventCountry "ESP"]
[SourceTitle "playchess.com"]
[Source "ChessBase"]
[SourceQuality "1"]
[TimeControl "5400+30"]

{[%evp 9,83,8,18,10,19,0,13,12,0,17,18,19,22,0,0,0,0,0,0,0,0,0,0,0,0,0,0,0,7,0,0,0,8,0,8,0,0,-31,-28,-34,-30,-31,-29,-37,0,0,0,-43,-10,-10,-10,-10,-10,-14,-10,-6,0,-14,0,0,0,0,0,0,0,0,0,0,0,0,0,0,0,0,0,0]} 1. e4 {[%emt 0:00:03]} c5 {[%emt 0:00:15]} 2. Nf3 {[%emt 0:00:06]} d6 {[%emt 0:00:11]} 3. d4 {[%emt 0:00:07]} cxd4 {[%emt 0:00:07]} 4. Qxd4 {[%emt 0:00:04]} Nf6 {[%emt 0:00:22]} 5. Be2 {[%emt 0:01:08]} Nc6 {[%emt 0:00:20]} 6. Qe3 {[%emt 0:00:11]} g6 {[%emt 0:00:16]} 7. O-O {[%emt 0:00:19]} Bg7 {[%emt 0:00:21]} 8. Rd1 {[%emt 0:03:36]} O-O {[%emt 0:00:35]} 9. Nc3 {[%emt 0:00:07][%cal Bb1c3,Bc3d5,Bd5f4][%mdl 32]} Bg4 {[%emt 0:02:59]} (9... Ng4 {keeps more tension.} 10. Qg5 Qb6 11. Qh4 Bf6) 10. Nd5 {[%emt 0:05:49]} Nd7 {[%emt 0:01:10]} 11. h3 {[%emt 0:10:19]} Bxf3 {[%emt 0:00:18]} 12. Bxf3 {[%emt 0:00:03]} e6 {[%emt 0:12:17]} 13. Nf4 {[%emt 0:08:48]} Qc7 {[%emt 0:02:34]} 14. c3 {[%emt 0:00:54] Inhibits Nb4.} b5 {[%emt 0:03:53]} 15. Be2 {[%emt 0:05:07]} b4 {[%emt 0:38:57]} 16. Bd2 {[%emt 0:01:26]} Rab8 {[%emt 0:04:31]} 17. b3 {[%emt 0:29:57]} a5 {[%emt 0:10:27]} 18. Rac1 {[%emt 0:00:21]} Qb7 {[%emt 0:01:02]} 19. Nd3 {[%emt 0:07:26]} Rfc8 {[%emt 0:03:40]} 20. Bf1 {[%emt 0:04:47]} Ra8 {[%emt 0:04:09]} 21. Qe1 {[%emt 0:03:27][%cal Rc3b4]} Nde5 {[%emt 0:02:08]} 22. Nb2 {[%emt 0:02:00]} bxc3 {[%emt 0:01:13]} 23. Rxc3 {[%emt 0:04:52]} Nb4 {[%emt 0:02:08] A dynamic duo of knights.} 24. Rxc8+ {[%emt 0:00:37]} Rxc8 {[%emt 0:04:25]} 25. Bxb4 {[%emt 0:00:07]} axb4 {[%emt 0:02:42]} 26. Rxd6 {[%emt 0:02:47] [#]} Nf3+ $1 27. gxf3 {[%emt 0:00:04]} Bxb2 {[%emt 0:00:18]} 28. Ba6 {[%emt 0:00:59]} Qc7 {[%emt 0:01:55]} (28... Qe7 $5 29. Qd2 Bc1 $11) 29. Rd2 {[%emt 0:06:23] The position is equal.} (29. Qxb4 $2 {loses.} Qc1+ 30. Kg2 Qg5+ 31. Kf1 Rc1+ 32. Ke2 Bc3 33. Qb8+ Kg7 $19) 29... Qc1 {[%emt 0:00:15]} 30. Qxc1 {[%emt 0:00:19]} Rxc1+ $11 {[%emt 0:00:55][%mdl 4096] Endgame. KRB-KRB} 31. Kg2 {[%emt 0:00:05]} Be5 {[%emt 0:00:36][%mdl 1024] Black has compensation.} 32. Bb5 {[%emt 0:01:34]} g5 {[%emt 0:00:28]} 33. Bc4 {[%emt 0:01:39]} Kg7 {[%emt 0:00:33]} 34. Rd7 {[%emt 0:00:36]} Kf6 {[%emt 0:00:31]} 35. Rb7 {[%emt 0:01:09]} Rc2 {[%emt 0:00:13]} 36. Rxb4 {[%emt 0:00:32]} Bd4 {[%emt 0:00:56]} 37. Bd3 {[%emt 0:00:38][%csl LRc2,LRd4]} Rxf2+ {[%emt 0:00:09]} 38. Kg3 {[%emt 0:00:07]} Ba7 {[%emt 0:00:57][%cal Of2d2]} 39. Ra4 {[%emt 0:00:15]} Bb6 {[%emt 0:00:30]} 40. Rb4 {[%emt 0:00:25]} Ba7 {[%emt 0:00:23][%cal Of2d2]} 41. Ra4 {[%emt 0:00:33]} Bb6 {[%emt 0:00:18]} 42. Rb4 {[%emt 0:00:34] Weighted Error Value: White=0.05 (flawless) /Black=0.04 (flawless) .  Inaccurate:     	White=2     	Black=2      OK:         	White=19    	Black=21     Best:        	White=2     	---} 1/2-1/2

[Event "Arona Festival 2024"]
[Site "Arona Tenerife"]
[Date "2024.06.27"]
[Round "7.4"]
[White "Goutham Krishna H"]
[Black "Peralta, Fernando"]
[Result "1/2-1/2"]
[ECO "A08"]
[WhiteElo "2324"]
[BlackElo "2562"]
[Annotator "TA"]
[PlyCount "68"]
[EventDate "2024.06.20"]
[EventType "swiss"]
[EventCountry "ESP"]
[SourceTitle "playchess.com"]
[Source "ChessBase"]
[SourceQuality "1"]
[TimeControl "5400+30"]

{[%evp 12,68,-27,-20,-21,-22,-22,-27,-22,-7,-15,-10,-23,-8,38,25,41,0,1,-11,-21,-26,7,10,0,0,0,0,14,9,8,8,25,0,21,20,23,24,35,16,35,35,35,35,35,0,28,0,0,0,0,0,33,27,33,33,33,33,33]} 1. g3 {[%emt 0:04:13]} e5 {[%emt 0:02:28]} 2. Bg2 {[%emt 0:00:10]} d5 {[%emt 0:01:42]} 3. d3 {[%emt 0:00:08]} c5 {[%emt 0:01:12]} 4. Nf3 {[%emt 0:00:37]} Nc6 {[%emt 0:00:10]} 5. O-O {[%emt 0:00:07]} Nf6 {[%emt 0:00:56]} 6. e4 {[%emt 0:00:57]} d4 {[%emt 0:00:59]} 7. a4 {[%emt 0:00:08]} Bd6 {[%emt 0:06:49]} 8. Na3 {[%emt 0:00:31]} O-O {[%emt 0:01:20]} 9. Nd2 {[%emt 0:05:26]} Bc7 {[%emt 0:05:39] Black has an edge.} 10. f4 {[%emt 0:01:35]} Ng4 {[%emt 0:02:58]} 11. Ndc4 {[%emt 0:07:53] Prevents Ne3.} exf4 {[%emt 0:08:05]} 12. gxf4 {[%emt 0:00:33]} f5 {[%emt 0:00:43]} (12... a6 $11 {is superior.}) 13. e5 $14 {[%emt 0:02:50]} a6 {[%emt 0:01:11] Prevents Nb5.} 14. Qf3 {[%emt 0:08:27]} Be6 {[%emt 0:01:13]} 15. Bd2 {[%emt 0:04:36]} Rb8 {[%emt 0:04:38][%cal Ba8b8,Bb8e8,Be8e6][%mdl 32]} 16. Qe2 {[%emt 0:16:56]} Bd5 {[%emt 0:05:20]} 17. Bxd5+ Qxd5 {[%emt 0:00:07]} 18. h3 {[%emt 0:02:46]} Nh6 {[%emt 0:00:52] ...b5 would now be deadly.} 19. a5 $1 {[%emt 0:00:42]} Rbe8 {[%emt 0:05:47]} 20. Nb6 {[%emt 0:02:40]} Bxb6 {[%emt 0:12:41]} 21. axb6 {[%emt 0:00:03]} Nf7 {[%emt 0:00:45]} 22. Qf3 {[%emt 0:01:45]} Qd8 {[%emt 0:04:26]} 23. Nc4 {[%emt 0:00:30][%cal Ob2b4]} Re6 {[%emt 0:00:39]} 24. Rf2 {[%emt 0:05:31]} Kh8 {[%emt 0:00:30]} 25. Kh2 {[%emt 0:01:55]} Rg8 {[%emt 0:03:02]} 26. Rg1 {[%emt 0:02:00]} g6 {[%emt 0:00:46]} 27. b3 {[%emt 0:01:00]} Qd7 {[%emt 0:06:20]} 28. Rb1 {[%emt 0:02:26][%cal Bg1b1,Bb1b4,Bb4a4,Ba4a1][%mdl 32]} Rc8 {[%emt 0:02:17][%cal Bg8c8,Bc8c5,Bc5b5][%mdl 32]} 29. b4 {[%emt 0:02:01]} cxb4 {[%emt 0:01:52]} 30. Bxb4 {[%emt 0:00:15]} Nxb4 {[%emt 0:00:36]} 31. Rxb4 {[%emt 0:00:02]} Rc5 {[%emt 0:00:22]} 32. Re2 {[%emt 0:03:11]} Rb5 {[%emt 0:01:36]} 33. Ra4 {[%emt 0:00:56]} Kg7 {[%emt 0:04:07]} 34. Ra1 {[%emt 0:01:36]} Kf8 {[%emt 0:15:22] Weighted Error Value: White=0.07 (flawless) /Black=0.09 (flawless) .  Mistake:       	---       	Black=1      Inaccurate:     	White=3     	Black=3      OK:         	White=8     	Black=12     Best:        	White=1     	Black=1      Strong:       	White=1     	---} 1/2-1/2

[Event "Arona Festival 2024"]
[Site "Arona Tenerife"]
[Date "2024.06.27"]
[Round "7.5"]
[White "Kochavi, Ori"]
[Black "Stremavicius, Titas"]
[Result "1/2-1/2"]
[ECO "C70"]
[WhiteElo "2394"]
[BlackElo "2538"]
[Annotator "TA"]
[PlyCount "52"]
[EventDate "2024.06.20"]
[EventType "swiss"]
[EventCountry "ESP"]
[SourceTitle "playchess.com"]
[Source "ChessBase"]
[SourceQuality "1"]
[TimeControl "5400+30"]

{[%evp 12,52,56,54,52,39,68,25,62,39,35,39,38,33,39,33,31,29,35,39,35,33,32,34,34,27,33,33,38,0,0,0,0,0,0,0,0,0,6,0,0,0,14]} 1. e4 {[%emt 0:01:57]} e5 {[%emt 0:00:16]} 2. Nf3 {[%emt 0:00:40]} Nc6 {[%emt 0:00:07]} 3. Bb5 {[%emt 0:00:02][%cal Bf1b5,Bb5a4,Ba4b3][%mdl 32]} a6 {[%emt 0:00:06]} 4. Ba4 {[%emt 0:00:03]} b5 {[%emt 0:00:07]} 5. Bb3 {[%emt 0:00:05]} Na5 {[%emt 0:00:05]} 6. O-O {[%emt 0:00:35]} d6 {[%emt 0:00:08]} 7. d4 {[%emt 0:12:13]} exd4 {[%emt 0:00:08]} 8. Re1 {[%emt 0:00:02]} Be7 {[%emt 0:27:08]} 9. Nxd4 {[%emt 0:06:23] [#] Bd5 would now be deadly.} Bb7 {[%emt 0:10:09] White has an edge.} 10. Nf5 {[%emt 0:07:03] White is more active.} Nxb3 {[%emt 0:14:53]} 11. axb3 {[%emt 0:00:22]} Bf6 {[%emt 0:00:06]} 12. Nc3 {[%emt 0:20:29]} Ne7 {[%emt 0:09:29]} 13. Nd5 {[%emt 0:00:03]} Bxd5 {[%emt 0:01:47]} 14. exd5 {[%emt 0:00:11][%cal Oe1e7] [#] Black must now prevent Rxe7+!} O-O {[%emt 0:00:22]} 15. Nxe7+ {[%emt 0:02:45]} Bxe7 {[%emt 0:00:02]} 16. b4 {[%emt 0:02:37]} Re8 {[%emt 0:02:49]} 17. c3 {[%emt 0:03:55]} Bf6 {[%emt 0:00:58]} 18. Be3 {[%emt 0:01:42]} Qd7 {[%emt 0:00:25]} 19. Qd3 {[%emt 0:03:06]} Re5 {[%emt 0:00:34]} 20. Ra3 {[%emt 0:04:37]} Bg5 {[%emt 0:03:28] The position is equal.} 21. Raa1 {[%emt 0:06:57] aiming for f4.} Bxe3 {[%emt 0:09:09]} 22. Rxe3 {[%emt 0:02:29]} Rxe3 {[%emt 0:00:15]} 23. Qxe3 {[%emt 0:04:55]} Qf5 {[%emt 0:00:17]} 24. Re1 {[%emt 0:05:30][%cal Oe3e8] Threatening mate with Qe8+!} g6 {[%emt 0:02:27]} ({And not} 24... Qxd5 25. Qe8+ Rxe8 26. Rxe8#) 25. Qd2 {[%emt 0:00:16]} Qd7 {[%emt 0:02:06]} 26. h3 {[%emt 0:14:33]} h5 {[%emt 0:16:09] Weighted Error Value: White=0.09 (flawless) /Black=0.04 (flawless) .  Inaccurate:     	White=2     	Black=2      OK:         	White=5     	Black=10     Best:        	---       	Black=1} 1/2-1/2